fUSD/lending_fUSD_20240403
["ID","MTS","AMOUNT","RATE_DAILY","PERIOD"]
[321428894,1712182408370,-150.0,0.00019924,2]
[321428895,1712182446261,250.0,0.00023,3]
[321428896,1712182490094,-150.0,0.00019142,2]
[321428897,1712182790527,-375.48452015,0.00019922,2]
[321428898,1712182790552,-735.80056117,0.00019923,2]
[321428899,1712182790576,-12267.69382795,0.00019924,2]
[321428900,1712182790602,-20135.30950974,0.00019924,2]
[321428908,1712183177048,3362.01309877,0.0002,10]
[321428912,1712183201027,3362.01309877,0.0002,10]
[321428914,1712183219018,976.62351959,0.0002,10]
[321428917,1712183239097,-375.48452015,0.00020122,2]
[321428918,1712183239116,-150.0,0.00020123,2]
[321428919,1712183239135,-1783.19086385,0.00020124,2]
[321428930,1712183352118,217.95,0.00018354,2]
[321428952,1712183432396,-514.514337,0.00020023,2]
[321428953,1712183432406,-375.48452015,0.00020123,2]
[321428954,1712183432416,-150.0,0.00020123,2]
[321428955,1712183432425,-2260.765663,0.00020124,2]
[321428956,1712183432434,-14787.06843615,0.00020124,2]
[321428957,1712183432444,-529.97892528,0.00020224,2]
[321428958,1712183432453,-791.1559275,0.00020224,2]
[321428959,1712183432463,-11900.0,0.00020238,2]
[321428960,1712183432495,-500.0,0.00020243,2]
[321428961,1712183432533,-200.0,0.00020243,2]
[321428962,1712183432542,-1852.42,0.00020387,2]
[321428963,1712183432552,-1340.14,0.00020568,2]
[321428964,1712183432561,-217.95,0.00020618,2]
[321428965,1712183432570,-23900.0,0.00020681,2]
[321428966,1712183432579,-250.0,0.00020702,2]
[321428967,1712183432587,-6424.22672579,0.00020702,2]
[321429016,1712183438312,-4347.37,0.00020178,2]
[321429017,1712183438321,-1345.92,0.00020178,2]
[321429018,1712183438332,-5620.86327421,0.00020702,2]
[321429019,1712183438341,-150.99,0.00020702,2]
[321429020,1712183438351,-1537.28,0.00020702,2]
[321429021,1712183438361,-840.58,0.00020749,2]
[321429022,1712183438370,-412.45175829,0.00020788,2]
[321429023,1712183438383,-500.0,0.00020845,2]
[321429024,1712183438392,-212.74496021,0.000209,2]
[321429025,1712183438401,-160.48399293,0.000209,2]
[321429026,1712183438410,-750.0,0.000209,2]
[321429027,1712183438419,-1302.56547205,0.000209,2]
[321429028,1712183438429,-2089.2,0.000209,2]
[321429029,1712183438438,-499.99,0.000209,2]
[321429030,1712183438448,-2333.51581108,0.00020972,2]
[321429031,1712183438457,-500.0,0.00020979,2]
[321429032,1712183438466,-500.0,0.00020979,2]
[321429033,1712183438476,-500.0,0.00020979,2]
[321429034,1712183438486,-500.0,0.00020979,2]
[321429035,1712183438495,-500.0,0.00020979,2]
[321429036,1712183438505,-649.99999999,0.00020979,2]
[321429037,1712183438514,-25206.57622641,0.0002098,2]
[321429038,1712183438524,-999.99,0.0002098,2]
[321429039,1712183438533,-9999.99,0.0002098,2]
[321429040,1712183438543,-3389.98863207,0.00020989,2]
[321429041,1712183438552,-4461.4790525,0.00020998,2]
[321429042,1712183438561,-598834.60640249,0.00021,2]
[321429043,1712183438724,-1117.84961151,0.00021,2]
[321429045,1712183438747,-33757.88971754,0.00021,2]
[321429046,1712183438945,-0.10513271,0.00021,2]
[321429105,1712183443317,-0.00807603,0.00021,2]
[321429106,1712183443390,-6832.5723224,0.00021,2]
[321429107,1712183443608,-43.2475792,0.00021,2]
[321429111,1712183446933,-375.48452015,0.00020999,2]
[321429112,1712183446944,-2798.1176239,0.00021,2]
[321429113,1712183447151,-1033.1151378,0.00021,2]
[321429114,1712183508874,-4712.03967273,0.00020701,2]
[321429115,1712183508899,-33737.96032727,0.00020702,2]
[321429116,1712183527955,-203.51362457,0.00020701,2]
[321429117,1712183527979,-77.92179542,0.00020702,2]
[321429118,1712183528003,-2338.2405195,0.00020972,2]
[321429119,1712183528026,-1091.89889466,0.00020972,2]
[321429120,1712183528053,-155.0,0.00020998,2]
[321429121,1712183528076,-643.81349141,0.00020998,2]
[321429122,1712183528100,-1109.06265539,0.00020998,2]
[321429123,1712183528124,-1238.94442072,0.00020998,2]
[321429124,1712183528147,-188.00024433,0.00020998,2]
[321429125,1712183528170,-317.5982611,0.00020998,2]
[321429126,1712183528193,-406.08005128,0.00020998,2]
[321429127,1712183528220,-201.02811127,0.00020998,2]
[321429128,1712183528242,-300.79443574,0.00020998,2]
[321429129,1712183528266,-361.02398684,0.00020998,2]
[321429130,1712183528289,-301.59367167,0.00020998,2]
[321429131,1712183528312,-3494.82203482,0.00020998,2]
[321429132,1712183528339,-323.71729788,0.00020998,2]
[321429133,1712183528362,-155.0,0.00020998,2]
[321429134,1712183528384,-264.79030113,0.00020998,2]
[321429135,1712183528407,-163.45462527,0.00020998,2]
[321429136,1712183528429,-211.22749614,0.00020998,2]
[321429137,1712183528454,-160.44483625,0.00020998,2]
[321429138,1712183528480,-1053.83898605,0.00020998,2]
[321429139,1712183528506,-2729.30649513,0.00020998,2]
[321429140,1712183528674,-871.59284686,0.00020998,2]
[321429141,1712183528701,-155.2944933,0.00020999,2]
[321429142,1712183528728,-396.45024351,0.00020999,2]
[321429143,1712183528753,-155.0,0.00020999,2]
[321429144,1712183528776,-330.98988329,0.00020999,2]
[321429145,1712183528801,-1559.07030138,0.00020999,2]
[321429146,1712183528826,-4040.48599509,0.00021,2]
[321429147,1712183529633,-375.48452015,0.000207,2]
[321429148,1712183529658,-24624.51547985,0.00021,2]
[321429149,1712183530614,224.72,0.00018759,2]
[321429150,1712183530746,-25000.0,0.00021,2]
[321429151,1712183531762,-25000.0,0.00021,2]
[321429152,1712183532901,-25000.0,0.00021,2]
[321429153,1712183534088,-25000.0,0.00021,2]
[321429154,1712183535949,-25000.0,0.00021,2]
[321429155,1712183538857,-25000.0,0.00021,2]
[321429156,1712183540132,-25000.0,0.00021,2]
[321429157,1712183541429,-25000.0,0.00021,2]
[321429158,1712183557689,699.67,0.0002099,3]
[321429159,1712183557962,1399.34,0.0002236,3]
[321429160,1712183568500,417.64,0.0002099,3]
[321429161,1712183568772,835.28,0.0002236,3]
[321429162,1712183579535,208.82,0.0002099,3]
[321429163,1712183579795,417.64,0.0002236,3]
[321429164,1712183590335,626.5,0.0002099,3]
[321429166,1712183703261,334.83128511,0.00018906,30]
[321429167,1712183801274,-500.0,0.00020869,2]
[321429168,1712183801296,-1000.0,0.00020869,2]
[321429169,1712183801317,-554.36640592,0.0002087,2]
[321429170,1712183801338,-16570.2593,0.00020872,2]
[321429171,1712183801360,-5601.6747,0.00020872,2]
[321429172,1712183801382,-318.35714049,0.0002099,2]
[321429173,1712183801405,-1880.35302327,0.00020996,2]
[321429174,1712183801426,-2223.27301517,0.00020996,2]
[321429175,1712183801449,-1019.10563496,0.00020996,2]
[321429176,1712183801470,-222.27234335,0.00020999,2]
[321429177,1712183801490,-390.47516784,0.00020999,2]
[321429178,1712183801511,-350.0,0.00020999,2]
[321429179,1712183801534,-419369.863269,0.00021,2]
[321429180,1712183943449,293.16,0.00022971,3]
[321429181,1712184250004,250.0,0.00023,3]
[321429182,1712184573106,-1000.0,0.00020668,2]
[321429183,1712184573132,-500.0,0.00020668,2]
[321429184,1712184573159,-3401.6337,0.00020669,2]
[321429185,1712184573186,-150.0,0.00020768,2]
[321429186,1712184573214,-5439.6691945,0.00020769,2]
[321429187,1712184631429,-397.08384421,0.00020769,2]
[321429188,1712184631625,-271.62816129,0.00020769,2]
[321429189,1712184631635,-1000.0,0.00020898,2]
[321429190,1712184631645,-500.0,0.00020899,2]
[321429191,1712184631654,-1614.48053871,0.000209,2]
[321429192,1712184631666,-841.16599771,0.000209,2]
[321429193,1712184631675,-2000.94571368,0.000209,2]
[321429194,1712184631684,-1645.30889537,0.000209,2]
[321429195,1712184631694,-7095.6860422,0.00021,2]
[321429196,1712184631765,-575.15791979,0.00021,2]
[321429198,1712184631855,-352.91615579,0.00021,2]
[321429235,1712184637405,-1707.15206711,0.00021,2]
[321429237,1712184637416,-1614.48991598,0.00021,2]
[321429242,1712184637621,-2360.83574675,0.00021,2]
[321429243,1712184637745,-364741.66557954,0.00021,2]
[321429244,1712184637754,-788.55507,0.00021,2]
[321429245,1712184637763,-150.99,0.00021123,2]
[321429246,1712184637772,-1479.325353,0.00021124,2]
[321429247,1712184637782,-673.1,0.00021133,2]
[321429248,1712184637791,-150.99,0.00021133,2]
[321429249,1712184637800,-301.38,0.00021158,2]
[321429250,1712184637809,-11379.75,0.00021903,2]
[321429251,1712184637818,-782.49966246,0.00022,2]
[321429252,1712184637827,-13593.24005819,0.00022,2]
[321429253,1712184637837,-1823.05,0.00022287,2]
[321429254,1712184637846,-200.0,0.00022437,2]
[321429255,1712184637855,-951.16525938,0.00022482,2]
[321429256,1712184637864,-5602.34,0.00022537,2]
[321429257,1712184637874,-896.6,0.00022539,2]
[321429258,1712184637883,-1135.71,0.00022539,2]
[321429259,1712184637894,-3927.15,0.00022539,2]
[321429261,1712184637903,-250.0,0.00022634,2]
[321429263,1712184637912,-167.0,0.00022672,2]
[321429265,1712184637921,-499.99,0.00022672,2]
[321429267,1712184637930,-568.77,0.00022682,2]
[321429268,1712184637939,-250.0,0.00022777,2]
[321429269,1712184637948,-6351.15,0.00022874,2]
[321429270,1712184637957,-9999.99,0.00022882,2]
[321429271,1712184637967,-75188.42,0.00022889,2]
[321429272,1712184637976,-150.0,0.00022969,2]
[321429273,1712184637987,-1680.64,0.00022987,2]
[321429274,1712184637997,-500.0,0.00022987,2]
[321429275,1712184638007,-19475.16,0.00023,2]
[321429276,1712184638017,-787.36,0.00023075,2]
[321429277,1712184638028,-1000.0,0.00023098,2]
[321429278,1712184638039,-500.0,0.000231,2]
[321429279,1712184638048,-500.0,0.00023156,2]
[321429280,1712184638057,-167.0,0.0002342,2]
[321429281,1712184638067,-301.38,0.00023422,2]
[321429282,1712184638076,-1926.21593377,0.0002354,2]
[321429283,1712184638086,-300.0,0.00023657,2]
[321429284,1712184638096,-23900.0,0.000239,2]
[321429285,1712184638106,-1577.96,0.00023934,2]
[321429286,1712184638116,-224.37030284,0.00024,2]
[321429287,1712184638126,-151.39,0.00024079,2]
[321429288,1712184638136,-2500.0,0.00024095,2]
[321429289,1712184638147,-2500.0,0.00024095,2]
[321429290,1712184638157,-167.0,0.00024169,2]
[321429291,1712184638167,-173.03,0.00024421,2]
[321429292,1712184638177,-161.93423898,0.00024449,2]
[321429293,1712184638186,-617.43,0.00024466,2]
[321429294,1712184638196,-800.0,0.00024493,2]
[321429295,1712184638206,-800.0,0.00024521,2]
[321429296,1712184638217,-1159.29,0.00024642,2]
[321429297,1712184638226,-2455.64653641,0.00024777,2]
[321429298,1712184638235,-2000.94571364,0.00024777,2]
[321429299,1712184638246,-167.0,0.00024917,2]
[321429300,1712184638257,-2000.0,0.00024935,2]
[321429301,1712184638267,-951.16525926,0.00024959,2]
[321429302,1712184638280,-300.0,0.00025,3]
[321429303,1712184638289,-300.0,0.00025026,2]
[321429304,1712184638299,-896.6,0.00025279,2]
[321429305,1712184638309,-151.39,0.00025334,2]
[321429306,1712184638319,-167.0,0.00025665,2]
[321429307,1712184638330,-301.38,0.00025685,2]
[321429308,1712184638341,-1645.3088953,0.00025741,2]
[321429309,1712184638352,-155.0,0.00025786,3]
[321429310,1712184638362,-1000.0,0.00025985,2]
[321429311,1712184638373,-788.55507,0.00026,2]
[321429312,1712184638384,-167.0,0.00026414,2]
[321429313,1712184638394,-8601.26261966,0.00026977,2]
[321429314,1712184638406,-350.0,0.00027,3]
[321429315,1712184638417,-453.18,0.00027123,2]
[321429316,1712184638426,-1049.0,0.00027281,2]
[321429317,1712184638436,-432.0,0.000273,2]
[321429318,1712184638446,-250.0,0.00027397,2]
[321429319,1712184638456,-951.16525926,0.00027436,2]
[321429320,1712184638465,-595.59352991,0.00027436,2]
[321429321,1712184638474,-192.14525364,0.00027796,2]
[321429322,1712184638483,-169.59288492,0.00027896,2]
[321429323,1712184638492,-301.38,0.00027949,2]
[321429324,1712184638501,-155.16191153,0.00027996,2]
[321429325,1712184638511,-223.86282589,0.00027997,2]
[321429326,1712184638520,-3961.90654296,0.00027997,2]
[321429327,1712184638529,-896.6,0.00028018,2]
[321429328,1712184638538,-2455.64653641,0.00028653,2]
[321429329,1712184638548,-2000.94571364,0.00028653,2]
[321429330,1712184638557,-1000.0,0.00028873,2]
[321429331,1712184638567,-400.0,0.00029,3]
[321429332,1712184638577,-440.96392074,0.000295,3]
[321429333,1712184638587,-951.16525926,0.00029913,2]
[321429334,1712184638597,-2639.48076778,0.0002999,2]
[321429335,1712184638607,-405.14841286,0.0003,4]
[321429336,1712184638618,-606.55912079,0.0003,4]
[321429337,1712184638628,-155.0,0.0003,2]
[321429338,1712184638639,-3205.84389542,0.0003,2]
[321429339,1712184638649,-1599.97630247,0.0003,4]
[321429340,1712184638659,-301.38,0.00030213,2]
[321429341,1712184638669,-1645.3088953,0.00030582,5]
[321429342,1712184638680,-450.0,0.00031,3]
[321429343,1712184638689,-788.55508,0.00031,2]
[321429344,1712184638698,-500.0,0.00031118,2]
[321429345,1712184638709,-180.0,0.00031342,2]
[321429346,1712184638720,-1000.0,0.0003176,2]
[321429347,1712184638730,-473.90371975,0.00032,4]
[321429348,1712184638961,-1680.64,0.00032182,2]
[321429349,1712184638971,-951.16525926,0.0003239,2]
[321429350,1712184638980,-301.38,0.00032477,2]
[321429351,1712184638989,-2455.64653641,0.0003253,2]
[321429352,1712184638998,-2000.94571364,0.0003253,2]
[321429353,1712184639007,-156.25,0.00032877,2]
[321429354,1712184639016,-187.5,0.00032877,2]
[321429355,1712184639025,-150.0,0.00032877,2]
[321429356,1712184639034,-500.0,0.00033,3]
[321429357,1712184639043,-150.0,0.00033742,2]
[321429358,1712184639053,-568.77,0.00033915,2]
[321429359,1712184639063,-150.0,0.00034548,10]
[321429360,1712184639073,-150.0,0.00034607,2]
[321429361,1712184639082,-1000.0,0.00034647,2]
[321429362,1712184639093,-301.38,0.00034741,2]
[321429363,1712184639103,-9053.58976532,0.000348,4]
[321429364,1712184639112,-951.16525926,0.00034867,2]
[321429365,1712184639122,-1281.21723531,0.00035,4]
[321429366,1712184639131,-550.0,0.00035,3]
[321429367,1712184639142,-499.0,0.00035167,5]
[321429368,1712184639151,-1577.96,0.00035167,2]
[321429369,1712184639160,-1645.3088953,0.00035423,7]
[321429370,1712184639169,-150.0,0.00035472,2]
[321429371,1712184639178,-788.55507,0.00036,2]
[321429372,1712184639188,-150.0,0.00036337,2]
[321429373,1712184639197,-2455.64653641,0.00036407,2]
[321429374,1712184639206,-2000.94571364,0.00036407,2]
[321429375,1712184639215,-600.0,0.00037,3]
[321429376,1712184639224,-301.38,0.00037005,2]
[321429377,1712184639233,-150.0,0.00037203,2]
[321429378,1712184639242,-951.16525926,0.00037344,2]
[321429379,1712184639251,-2100.0,0.00038,7]
[321429380,1712184639260,-698.62,0.00038027,15]
[321429381,1712184639271,-150.0,0.00038068,2]
[321429382,1712184639283,-16354.0,0.00038181,2]
[321429383,1712184639292,-187.5,0.00038356,2]
[321429384,1712184639302,-151.040407,0.00038498,38]
[321429386,1712184639311,-489.98833825,0.000385,4]
[321429388,1712184639320,-274.32618057,0.000387,4]
[321429390,1712184639330,-4216.29442521,0.000388,2]
[321429391,1712184639339,-4064.11230153,0.000389,15]
[321429392,1712184639348,-150.0,0.00038933,2]
[321429394,1712184639358,-650.0,0.00039,3]
[321429396,1712184639368,-152.0,0.00039119,3]
[321429398,1712184639377,-800.0,0.00039135,15]
[321429400,1712184639386,-500.0,0.00039135,20]
[321429401,1712184639397,-301.38,0.00039269,2]
[321429402,1712184639406,-151.040407,0.00039498,39]
[321429403,1712184639414,-578.30923369,0.00039557,11]
[321429404,1712184639423,-150.0,0.00039798,2]
[321429405,1712184639432,-951.16525926,0.00039821,2]
[321429406,1712184639441,-2400.00191258,0.0004,30]
[321429407,1712184639450,-5757.17728566,0.0004,4]
[321429408,1712184639459,-547.00820039,0.0004,4]
[321429409,1712184639469,-22098.16965284,0.0004,4]
[321429410,1712184639478,-192.70693193,0.0004,2]
[321429411,1712184639488,-1645.3088953,0.00040264,9]
[321429412,1712184639497,-2455.64653641,0.00040283,2]
[321429413,1712184639506,-2000.94571364,0.00040283,2]
[321429414,1712184639516,-151.040407,0.00040498,40]
[321429415,1712184639526,-150.0,0.00040513,2]
[321429416,1712184639535,-150.0,0.00040513,2]
[321429417,1712184639545,-200.0,0.00040513,2]
[321429418,1712184639557,-14346.83831907,0.00040513,5]
[321429419,1712184639567,-15001.12619277,0.00040513,2]
[321429420,1712184639577,-179.36207202,0.00040513,7]
[321429421,1712184639588,-7206.58535154,0.00040513,2]
[321429422,1712184639599,-150.0,0.00040663,2]
[321429423,1712184639610,-698.62,0.00040767,15]
[321429424,1712184639622,-700.0,0.00041,3]
[321429425,1712184639634,-788.55507,0.00041,2]
[321429426,1712184639644,-150.3,0.00041,2]
[321429427,1712184639654,-150.3,0.00041,2]
[321429428,1712184639663,-183.0,0.00041096,2]
[321429429,1712184639673,-2650.0,0.000411,2]
[321429430,1712184639683,-152.0,0.00041244,4]
[321429431,1712184639693,-151.040407,0.00041498,41]
[321429432,1712184639702,-150.0,0.00041528,2]
[321429433,1712184639712,-301.38,0.00041533,2]
[321429434,1712184639722,-2613.35100814,0.00041538,4]
[321429435,1712184639731,-1014.9,0.000417,2]
[321429436,1712184639740,-561.909525,0.000417,2]
[321429437,1712184639749,-169.59288491,0.00042117,6]
[321429438,1712184639759,-951.16525926,0.00042298,2]
[321429439,1712184639768,-150.0,0.00042394,2]
[321429440,1712184639777,-151.040407,0.00042498,42]
[321429441,1712184639786,-1014.9,0.00042705,2]
[321429442,1712184639795,-750.0,0.00043,3]
[321429443,1712184639805,-150.0,0.00043259,2]
[321429444,1712184639814,-152.0,0.00043368,5]
[321429445,1712184639823,-151.040407,0.00043498,43]
[321429446,1712184639834,-698.62,0.00043507,15]
[321429447,1712184639843,-1014.9,0.0004371,2]
[321429448,1712184639852,-150.0,0.0004378,53]
[321429449,1712184639861,-301.38,0.00043797,2]
[321429450,1712184639870,-2650.27976135,0.000438,2]
[321429451,1712184639880,-666.0,0.00043835,2]
[321429452,1712184639889,-187.5,0.00043836,2]
[321429453,1712184639898,-325.04,0.00043836,2]
[321429454,1712184639907,-150.0,0.00044,44]
[321429455,1712184639916,-150.53104351,0.00044013,30]
[321429456,1712184639926,-155.37123309,0.00044031,30]
[321429457,1712184639935,-154.04196447,0.0004411,30]
[321429458,1712184639944,-150.0,0.00044124,2]
[321429459,1712184639953,-2455.64653641,0.0004416,2]
[321429460,1712184639962,-2000.94571364,0.0004416,2]
[321429461,1712184639971,-154.04196447,0.00044213,30]
[321429462,1712184639980,-211.70038829,0.00044432,30]
[321429463,1712184639989,-151.040407,0.00044498,54]
[321429464,1712184639998,-1014.9,0.00044715,2]
[321429465,1712184640008,-159.23197729,0.00044764,30]
[321429466,1712184640017,-951.16525926,0.00044775,2]
[321429467,1712184640026,-154.04196447,0.00044943,30]
[321429469,1712184640035,-873.94226474,0.00044986,4]
[321429471,1712184640044,-150.0,0.00044989,2]
[321429472,1712184640053,-150.3,0.0004499,2]
[321429473,1712184640062,-2545.45332203,0.00045,30]
[321429474,1712184640071,-156.37173326,0.00045,14]
[321429475,1712184640080,-328.38424403,0.00045,4]
[321429476,1712184640089,-800.0,0.00045,3]
[321429477,1712184640098,-152.39710192,0.00045058,30]
[321429478,1712184640107,-1645.3088953,0.00045105,12]
[321429479,1712184640116,-155.37123309,0.0004513,30]
[321429480,1712184640125,-568.77,0.00045148,120]
[321429481,1712184640135,-158.9516705,0.00045149,30]
[321429482,1712184640146,-155.37123309,0.00045227,30]
[321429483,1712184640156,-159.9685478,0.00045232,30]
[321429484,1712184640165,-150.53104351,0.00045318,30]
[321429485,1712184640174,-154.04196447,0.00045447,30]
[321429486,1712184640184,-152.0,0.00045493,6]
[321429487,1712184640195,-151.040407,0.00045498,65]
[321429488,1712184640204,-150.0,0.000455,8]
[321429489,1712184640216,-154.04196447,0.00045527,30]
[321429490,1712184640225,-150.53104351,0.00045622,30]
[321429491,1712184640234,-1014.9,0.0004572,2]
[321429492,1712184640245,-150.0,0.00045854,2]
[321429493,1712184640254,-150.0,0.00046,8]
[321429494,1712184640263,-788.55508,0.00046,2]
[321429495,1712184640274,-159.23197729,0.00046039,30]
[321429496,1712184640286,-301.38,0.0004606,2]
[321429497,1712184640297,-150.0,0.00046138,120]
[321429498,1712184640308,-167.52558322,0.00046213,30]
[321429499,1712184640319,-150.53104351,0.00046241,30]
[321429500,1712184640329,-698.62,0.00046247,15]
[321429501,1712184640338,-154.04196447,0.00046372,30]
[321429502,1712184640348,-1577.96,0.000464,120]
[321429503,1712184640360,-159.23197729,0.00046409,30]
[321429504,1712184640369,-150.0,0.0004649,58]
[321429505,1712184640380,-151.040407,0.00046498,76]
[321429506,1712184640389,-150.0,0.000465,8]
[321429507,1712184640399,-159.23197729,0.00046521,30]
[321429508,1712184640408,-150.53104351,0.00046561,30]
[321429509,1712184640418,-159.23197729,0.00046562,30]
[321429510,1712184640428,-666.0,0.00046575,2]
[321429511,1712184640438,-150.53104351,0.00046705,30]
[321429512,1712184640448,-150.0,0.0004672,2]
[321429513,1712184640458,-1014.9,0.00046725,2]
[321429514,1712184640469,-175.00514052,0.00046956,30]
[321429515,1712184640480,-850.0,0.00047,3]
[321429516,1712184640490,-150.0,0.00047,9]
[321429517,1712184640501,-155.78714108,0.00047054,30]
[321429518,1712184640511,-500.0,0.00047153,30]
[321429519,1712184640520,-154.04196447,0.0004721,30]
[321429520,1712184640529,-205.08721929,0.00047213,7]
[321429521,1712184640538,-951.16525926,0.00047252,2]
[321429522,1712184640548,-150.53104351,0.0004743,30]
[321429523,1712184640556,-155.22514993,0.0004745,30]
[321429524,1712184640566,-151.040407,0.00047498,87]
[321429525,1712184640577,-150.0,0.000475,9]
[321429526,1712184640586,-150.53104351,0.00047529,30]
[321429527,1712184640599,-150.0,0.00047585,2]
[321429528,1712184640610,-152.0,0.00047618,7]
[321429529,1712184640620,-1014.9,0.0004773,2]
[321429530,1712184640629,-156.25,0.0004775,2]
[321429531,1712184640638,-325.04,0.00047945,2]
[321429532,1712184640648,-151.0,0.00048,120]
[321429533,1712184640658,-150.0,0.00048,9]
[321429534,1712184640667,-2455.64653641,0.00048037,2]
[321429535,1712184640676,-2000.94571364,0.00048037,2]
[321429536,1712184640686,-157.90942163,0.00048189,30]
[321429537,1712184640696,-150.0,0.00048307,120]
[321429538,1712184640707,-301.38,0.00048324,2]
[321429539,1712184640717,-150.0,0.0004845,2]
[321429540,1712184640726,-159.23197729,0.0004847,30]
[321429541,1712184640735,-154.04196447,0.00048483,30]
[321429542,1712184640744,-151.040407,0.00048498,98]
[321429543,1712184640754,-150.0,0.000485,9]
[321429544,1712184640764,-150.53104351,0.00048611,30]
[321429545,1712184640775,-159.23197729,0.00048686,30]
[321429546,1712184640784,-1182.0,0.000487,117]
[321429547,1712184640793,-1014.9,0.00048735,2]
[321429548,1712184640802,-151.0,0.00048767,120]
[321429549,1712184640811,-163.47237623,0.00048813,30]
[321429550,1712184640820,-155.37123309,0.00048888,30]
[321429551,1712184640830,-219.45037844,0.000489,25]
[321429552,1712184640839,-245.58112642,0.000489,2]
[321429553,1712184640848,-152.9137592,0.000489,40]
[321429554,1712184640858,-39417.3499,0.000489,120]
[321429555,1712184640867,-1235.5644,0.000489,120]
[321429556,1712184640877,-150.53104351,0.00048906,30]
[321429557,1712184640886,-698.62,0.00048986,15]
[321429558,1712184640895,-150.3,0.0004899,120]
[321429559,1712184640905,-150.3,0.0004899,120]
[321429560,1712184640914,-150.3,0.0004899,120]
[321429561,1712184640924,-150.3,0.0004899,120]
[321429562,1712184640934,-198.6880857,0.00048994,30]
[321429563,1712184640943,-1211.0,0.00049,4]
[321429564,1712184640954,-303598.55054086,0.00049,30]
[321429565,1712184640964,-900.0,0.00049,3]
[321429566,1712184640973,-150.0,0.00049,9]
[321429567,1712184640982,-154.04196447,0.00049005,30]
[321429568,1712184640992,-155.37123309,0.0004901,30]
[321429569,1712184641001,-155.22514993,0.00049027,30]
[321429570,1712184641010,-159.23197729,0.0004907,30]
[321429571,1712184641019,-153.54975414,0.00049078,30]
[321429572,1712184641029,-154.04196447,0.00049126,30]
[321429573,1712184641037,-150.0,0.000492,64]
[321429574,1712184641046,-157.90942163,0.00049312,30]
[321429575,1712184641056,-666.0,0.00049315,2]
[321429576,1712184641065,-1858.32,0.00049315,60]
[321429577,1712184641074,-187.5,0.00049315,2]
[321429578,1712184641084,-150.0,0.00049315,2]
[321429579,1712184641095,-150.3,0.0004948,120]
[321429580,1712184641105,-150.3,0.0004948,120]
[321429581,1712184641114,-150.3,0.0004948,120]
[321429582,1712184641124,-186.34437693,0.00049487,2]
[321429583,1712184641133,-393.98,0.00049489,15]
[321429584,1712184641143,-393.98,0.00049489,15]
[321429585,1712184641151,-393.98,0.00049489,15]
[321429586,1712184641160,-393.98,0.00049489,15]
[321429587,1712184641226,-393.98,0.00049489,15]
[321429588,1712184641235,-393.98,0.00049489,15]
[321429589,1712184641246,-393.98,0.00049489,15]
[321429590,1712184641255,-393.98,0.00049489,15]
[321429591,1712184641264,-393.98,0.00049489,15]
[321429592,1712184641279,-217728.50616755,0.0004949,15]
[321429593,1712184641290,-151.040407,0.00049498,110]
[321429594,1712184641299,-150.0,0.000495,10]
[321429595,1712184641308,-151.0,0.00049534,120]
[321429596,1712184641317,-150.53104351,0.00049535,30]
[321429597,1712184641327,-175.00514052,0.00049616,30]
[321429598,1712184641335,-219.45037839,0.00049651,26]
[321429599,1712184641344,-176.26740747,0.00049702,30]
[321429600,1712184641354,-951.16525926,0.00049729,2]
[321429601,1712184641363,-1014.9,0.0004974,2]
[321429602,1712184641373,-152.0,0.00049742,8]
[321429603,1712184641382,-20767.71815497,0.000498,60]